[Event "Late-Titled-Tuesday-Blitz-March-19-2024"]
[Site "Chess.com"]
[Date "2024.03.19"]
[Round "11"]
[White "Dr_Pepper18"]
[Black "joksijoksi"]
[Result "1-0"]
[WhiteElo "2472"]
[BlackElo "2564"]
[TimeControl "180+1"]
[EndTime "16:05:55 PDT"]
[Termination "Dr_Pepper18 won by checkmate"]

1. d4 {[%clk 0:03:00.9]} 1... d5 {[%clk 0:02:58.7]} 2. c4 {[%clk 0:03:00.8]}
2... dxc4 {[%clk 0:02:58]} 3. e3 {[%clk 0:03:00.2]} 3... Nf6 {[%clk 0:02:56.6]}
4. Bxc4 {[%clk 0:03:00.2]} 4... e6 {[%clk 0:02:57.3]} 5. Nf3 {[%clk 0:03:00]}
5... c5 {[%clk 0:02:56.9]} 6. O-O {[%clk 0:02:59.8]} 6... cxd4 {[%clk
0:02:55.7]} 7. exd4 {[%clk 0:02:58.2]} 7... Nc6 {[%clk 0:02:55.6]} 8. Nc3 {[%clk
0:02:57.4]} 8... Bb4 {[%clk 0:02:56.1]} 9. Qe2 {[%clk 0:02:56.7]} 9... O-O
{[%clk 0:02:56.5]} 10. Rd1 {[%clk 0:02:56.6]} 10... Re8 {[%clk 0:02:52.2]} 11.
Bg5 {[%clk 0:02:56.3]} 11... h6 {[%clk 0:02:51.6]} 12. Bh4 {[%clk 0:02:56.3]}
12... Be7 {[%clk 0:02:52.3]} 13. Rac1 {[%clk 0:02:47.4]} 13... Nb4 {[%clk
0:02:51]} 14. Ne5 {[%clk 0:02:43.7]} 14... Nfd5 {[%clk 0:02:49.8]} 15. Bg3
{[%clk 0:02:39.3]} 15... Bf6 {[%clk 0:02:42.8]} 16. a3 {[%clk 0:02:34.5]} 16...
Nxc3 {[%clk 0:02:41.8]} 17. bxc3 {[%clk 0:02:35.4]} 17... Nd5 {[%clk 0:02:41.1]}
18. Bd3 {[%clk 0:02:35]} 18... Bxe5 {[%clk 0:02:35.8]} 19. Bxe5 {[%clk
0:02:33.6]} 19... Bd7 {[%clk 0:02:32.9]} 20. Qe4 {[%clk 0:02:30.2]} 20... f5
{[%clk 0:02:33.1]} 21. Qe2 {[%clk 0:02:23]} 21... Qg5 {[%clk 0:02:30.8]} 22. Qd2
{[%clk 0:02:04.3]} 22... Qg6 {[%clk 0:02:18.4]} 23. c4 {[%clk 0:02:02.1]} 23...
Nb6 {[%clk 0:02:12.8]} 24. Re1 {[%clk 0:01:46.3]} 24... Bc6 {[%clk 0:02:12.2]}
25. Bf1 {[%clk 0:01:46.2]} 25... Nd7 {[%clk 0:02:07.4]} 26. Bg3 {[%clk
0:01:38.9]} 26... Nf6 {[%clk 0:02:07.8]} 27. Be5 {[%clk 0:01:33]} 27... Ne4
{[%clk 0:02:05.9]} 28. Qf4 {[%clk 0:01:31.2]} 28... Ng5 {[%clk 0:02:04.8]} 29.
Qg3 {[%clk 0:01:31.2]} 29... Qf7 {[%clk 0:02:01.4]} 30. f3 {[%clk 0:01:28.7]}
30... Rad8 {[%clk 0:01:55.8]} 31. Rcd1 {[%clk 0:01:18]} 31... a5 {[%clk
0:01:54.2]} 32. Bc7 {[%clk 0:01:12.4]} 32... Rc8 {[%clk 0:01:48.7]} 33. Bxa5
{[%clk 0:01:12.4]} 33... f4 {[%clk 0:01:48.7]} 34. Qg4 {[%clk 0:01:09.2]} 34...
Qf6 {[%clk 0:01:45.1]} 35. h4 {[%clk 0:00:57.2]} 35... Nf7 {[%clk 0:01:43]} 36.
Bc3 {[%clk 0:00:51.3]} 36... Ba4 {[%clk 0:01:41.5]} 37. Rc1 {[%clk 0:00:47.5]}
37... Bb3 {[%clk 0:01:36]} 38. Ba1 {[%clk 0:00:40.4]} 38... g6 {[%clk
0:01:26.8]} 39. d5 {[%clk 0:00:38.3]} 39... e5 {[%clk 0:01:27.3]} 40. h5 {[%clk
0:00:31.7]} 40... g5 {[%clk 0:01:24.6]} 41. Bd3 {[%clk 0:00:29]} 41... Nd6
{[%clk 0:01:20.2]} 42. c5 {[%clk 0:00:28]} 42... Bxd5 {[%clk 0:01:12.2]} 43.
cxd6 {[%clk 0:00:21.2]} 43... Be6 {[%clk 0:01:11]} 44. Rxc8 {[%clk 0:00:15.5]}
44... Rxc8 {[%clk 0:01:07.1]} 45. Bxe5 {[%clk 0:00:16.1]} 45... Qf7 {[%clk
0:00:49.7]} 46. Bg6 {[%clk 0:00:08.1]} 46... Qd7 {[%clk 0:00:49.9]} 47. Bxf4
{[%clk 0:00:02.3]} 47... Bxg4 {[%clk 0:00:45.9]} 48. fxg4 {[%clk 0:00:03.2]}
48... gxf4 {[%clk 0:00:46.4]} 49. Bf5 {[%clk 0:00:04.1]} 49... Qd8 {[%clk
0:00:38.1]} 50. d7 {[%clk 0:00:04.5]} 50... Qb6+ {[%clk 0:00:33.9]} 51. Kh2
{[%clk 0:00:04.3]} 51... Rd8 {[%clk 0:00:34.6]} 52. Re6 {[%clk 0:00:03.5]} 52...
Qxe6 {[%clk 0:00:33.6]} 53. Bxe6+ {[%clk 0:00:03.7]} 53... Kg7 {[%clk
0:00:34.5]} 54. Kg1 {[%clk 0:00:04]} 54... Kf6 {[%clk 0:00:35.4]} 55. Bf5 {[%clk
0:00:04.6]} 55... Ke7 {[%clk 0:00:34.2]} 56. Kf2 {[%clk 0:00:05.2]} 56... Ra8
{[%clk 0:00:34.4]} 57. Kf3 {[%clk 0:00:03.3]} 57... Rxa3+ {[%clk 0:00:35]} 58.
Kxf4 {[%clk 0:00:04.2]} 58... Ra4+ {[%clk 0:00:34.6]} 59. Ke5 {[%clk 0:00:03]}
59... Ra5+ {[%clk 0:00:34.4]} 60. Kf4 {[%clk 0:00:03.1]} 60... Rd5 {[%clk
0:00:33.9]} 61. g5 {[%clk 0:00:02.7]} 61... hxg5+ {[%clk 0:00:32.6]} 62. Kxg5
{[%clk 0:00:03.6]} 62... Kf7 {[%clk 0:00:30.1]} 63. h6 {[%clk 0:00:04.1]} 63...
Kg8 {[%clk 0:00:30]} 64. Kf6 {[%clk 0:00:02.8]} 64... b5 {[%clk 0:00:29.2]} 65.
Be6+ {[%clk 0:00:02.9]} 65... Kh7 {[%clk 0:00:28.4]} 66. Bxd5 {[%clk 0:00:03.8]}
66... Kxh6 {[%clk 0:00:28.8]} 67. d8=Q {[%clk 0:00:04.5]} 67... Kh5 {[%clk
0:00:28.7]} 68. Qh8+ {[%clk 0:00:03.8]} 68... Kg4 {[%clk 0:00:25.4]} 69. Qg7+
{[%clk 0:00:04.7]} 69... Kf4 {[%clk 0:00:25.3]} 70. Qg5# {[%clk 0:00:05.4]} 1-0

[Event "Late-Titled-Tuesday-Blitz-March-19-2024"]
[Site "Chess.com"]
[Date "2024.03.19"]
[Round "11"]
[White "dropstoneDP"]
[Black "Igrok3069"]
[Result "1-0"]
[WhiteElo "2985"]
[BlackElo "2872"]
[TimeControl "180+1"]
[EndTime "16:06:00 PDT"]
[Termination "dropstoneDP won on time"]

1. e4 {[%clk 0:03:00]} 1... c6 {[%clk 0:02:55.2]} 2. d4 {[%clk 0:02:59.5]} 2...
d5 {[%clk 0:02:56.1]} 3. Nd2 {[%clk 0:02:58.9]} 3... dxe4 {[%clk 0:02:55.9]} 4.
Nxe4 {[%clk 0:02:59.8]} 4... Nf6 {[%clk 0:02:56.5]} 5. Nxf6+ {[%clk 0:02:59.3]}
5... exf6 {[%clk 0:02:57.4]} 6. c3 {[%clk 0:02:59.5]} 6... Bd6 {[%clk
0:02:56.1]} 7. Bd3 {[%clk 0:02:59.6]} 7... O-O {[%clk 0:02:56.3]} 8. Ne2 {[%clk
0:03:00.1]} 8... Re8 {[%clk 0:02:56.9]} 9. Qc2 {[%clk 0:03:00.6]} 9... h5 {[%clk
0:02:57]} 10. O-O {[%clk 0:03:01]} 10... h4 {[%clk 0:02:53.3]} 11. Bf4 {[%clk
0:03:00.5]} 11... Na6 {[%clk 0:02:45.1]} 12. Qd2 {[%clk 0:02:59.6]} 12... Nc7
{[%clk 0:02:43.8]} 13. Rfe1 {[%clk 0:02:57.4]} 13... Be6 {[%clk 0:02:39.2]} 14.
Bxd6 {[%clk 0:02:56.5]} 14... Qxd6 {[%clk 0:02:40.1]} 15. Qf4 {[%clk 0:02:56.3]}
15... Qxf4 {[%clk 0:02:35.1]} 16. Nxf4 {[%clk 0:02:57.2]} 16... Rad8 {[%clk
0:02:25.5]} 17. g3 {[%clk 0:02:51.8]} 17... Nd5 {[%clk 0:02:18.2]} 18. Nxe6
{[%clk 0:02:50.4]} 18... fxe6 {[%clk 0:02:18]} 19. Kg2 {[%clk 0:02:46.2]} 19...
Kf8 {[%clk 0:02:17.2]} 20. Re2 {[%clk 0:02:39.6]} 20... Kf7 {[%clk 0:02:16.8]}
21. Rae1 {[%clk 0:02:36.2]} 21... b5 {[%clk 0:02:14.8]} 22. a3 {[%clk
0:02:32.7]} 22... g5 {[%clk 0:02:09.6]} 23. Be4 {[%clk 0:02:23.2]} 23... g4
{[%clk 0:02:06.3]} 24. f4 {[%clk 0:02:13.9]} 24... gxf3+ {[%clk 0:02:04.6]} 25.
Bxf3 {[%clk 0:02:11]} 25... Rg8 {[%clk 0:01:27]} 26. Kf2 {[%clk 0:02:08]} 26...
Rd6 {[%clk 0:01:16.7]} 27. Re4 {[%clk 0:02:00.4]} 27... hxg3+ {[%clk 0:01:14]}
28. hxg3 {[%clk 0:02:01.3]} 28... Rh8 {[%clk 0:01:14.6]} 29. Rh4 {[%clk
0:01:58]} 29... Rxh4 {[%clk 0:01:13.4]} 30. gxh4 {[%clk 0:01:58.9]} 30... f5
{[%clk 0:01:09.6]} 31. Rg1 {[%clk 0:01:43.7]} 31... Nf6 {[%clk 0:01:06.3]} 32.
Ke3 {[%clk 0:01:42.1]} 32... Nd5+ {[%clk 0:01:03]} 33. Bxd5 {[%clk 0:01:37.1]}
33... Rxd5 {[%clk 0:00:51.8]} 34. h5 {[%clk 0:01:34.8]} 34... Rd8 {[%clk
0:00:50.1]} 35. Kf4 {[%clk 0:01:33.3]} 35... Rh8 {[%clk 0:00:48.2]} 36. Rh1
{[%clk 0:01:14.9]} 36... Kf6 {[%clk 0:00:43.1]} 37. b3 {[%clk 0:01:10]} 37...
Rg8 {[%clk 0:00:31.8]} 38. h6 {[%clk 0:01:07.4]} 38... Rh8 {[%clk 0:00:27.6]}
39. c4 {[%clk 0:00:47.2]} 39... bxc4 {[%clk 0:00:26.7]} 40. bxc4 {[%clk
0:00:48.1]} 40... Kg6 {[%clk 0:00:27]} 41. Ke5 {[%clk 0:00:25.1]} 41... Rxh6
{[%clk 0:00:26.3]} 42. Rxh6+ {[%clk 0:00:26]} 42... Kxh6 {[%clk 0:00:25.5]} 43.
Kxe6 {[%clk 0:00:26.6]} 43... f4 {[%clk 0:00:25.4]} 44. d5 {[%clk 0:00:27.2]}
44... f3 {[%clk 0:00:18.1]} 45. d6 {[%clk 0:00:21.7]} 45... f2 {[%clk
0:00:17.9]} 46. d7 {[%clk 0:00:21.5]} 46... f1=Q {[%clk 0:00:18.2]} 47. d8=Q
{[%clk 0:00:20.8]} 47... Qxc4+ {[%clk 0:00:17.6]} 48. Ke5 {[%clk 0:00:15.1]}
48... Qc3+ {[%clk 0:00:13.2]} 49. Kf4 {[%clk 0:00:11.9]} 49... c5 {[%clk
0:00:08.1]} 50. Qd6+ {[%clk 0:00:08]} 50... Kh7 {[%clk 0:00:06.3]} 51. Qc7+
{[%clk 0:00:08]} 51... Kg6 {[%clk 0:00:06]} 52. Qxa7 {[%clk 0:00:06]} 52... Qd4+
{[%clk 0:00:04.3]} 53. Kf3 {[%clk 0:00:06]} 53... Qd3+ {[%clk 0:00:04.3]} 54.
Kf2 {[%clk 0:00:05.8]} 54... c4 {[%clk 0:00:04.3]} 55. Qb6+ {[%clk 0:00:04.6]}
55... Kf5 {[%clk 0:00:04.2]} 56. Qe3 {[%clk 0:00:03.4]} 56... Qc2+ {[%clk
0:00:02.9]} 57. Kf3 {[%clk 0:00:04.3]} 1-0

[Event "Late-Titled-Tuesday-Blitz-March-19-2024"]
[Site "Chess.com"]
[Date "2024.03.19"]
[Round "11"]
[White "simaopdias"]
[Black "DrCeltic"]
[Result "1-0"]
[WhiteElo "2301"]
[BlackElo "2536"]
[TimeControl "180+1"]
[EndTime "16:06:07 PDT"]
[Termination "simaopdias won on time"]

1. e4 {[%clk 0:03:00.3]} 1... c5 {[%clk 0:02:59.7]} 2. Nf3 {[%clk 0:03:00.7]}
2... e6 {[%clk 0:03:00.2]} 3. d4 {[%clk 0:03:01.3]} 3... cxd4 {[%clk 0:03:01.1]}
4. Nxd4 {[%clk 0:03:01.4]} 4... Nf6 {[%clk 0:03:01.4]} 5. Bd3 {[%clk 0:03:00.2]}
5... Nc6 {[%clk 0:03:01.5]} 6. Be3 {[%clk 0:02:59.9]} 6... d5 {[%clk 0:03:01.6]}
7. Nxc6 {[%clk 0:02:52.9]} 7... bxc6 {[%clk 0:03:02.5]} 8. exd5 {[%clk
0:02:49.8]} 8... cxd5 {[%clk 0:03:01.4]} 9. O-O {[%clk 0:02:49.5]} 9... Bd6
{[%clk 0:02:58.3]} 10. c4 {[%clk 0:02:45.9]} 10... O-O {[%clk 0:02:58.4]} 11.
cxd5 {[%clk 0:02:45.9]} 11... Nxd5 {[%clk 0:02:59.3]} 12. Bd2 {[%clk 0:02:45.5]}
12... Bb7 {[%clk 0:02:52]} 13. Nc3 {[%clk 0:02:40.4]} 13... Nf4 {[%clk
0:02:47.3]} 14. Be4 {[%clk 0:02:37.2]} 14... Rb8 {[%clk 0:02:23.4]} 15. Qf3
{[%clk 0:02:36.5]} 15... Bxe4 {[%clk 0:02:20.7]} 16. Nxe4 {[%clk 0:02:36.6]}
16... Nd5 {[%clk 0:02:15.5]} 17. b3 {[%clk 0:02:21.3]} 17... Be7 {[%clk
0:02:04.8]} 18. Rfd1 {[%clk 0:02:20.5]} 18... Rc8 {[%clk 0:02:04.7]} 19. h3
{[%clk 0:02:17.2]} 19... Qb6 {[%clk 0:01:56.4]} 20. Rac1 {[%clk 0:02:15.6]}
20... Qa6 {[%clk 0:01:53]} 21. a4 {[%clk 0:02:00.2]} 21... Rb8 {[%clk 0:01:46]}
22. Nc5 {[%clk 0:01:55]} 22... Bxc5 {[%clk 0:01:42.5]} 23. Rxc5 {[%clk
0:01:55.9]} 23... Qb6 {[%clk 0:01:42.9]} 24. Rb5 {[%clk 0:01:46.7]} 24... Qd4
{[%clk 0:01:32.3]} 25. Bb4 {[%clk 0:01:27.6]} 25... Qb2 {[%clk 0:01:13.6]} 26.
Bxf8 {[%clk 0:01:26.1]} 26... Rxf8 {[%clk 0:01:13.8]} 27. Rb7 {[%clk 0:01:19.7]}
27... a6 {[%clk 0:01:02.8]} 28. g3 {[%clk 0:01:15.7]} 28... Qc2 {[%clk
0:00:54.7]} 29. Qd3 {[%clk 0:01:14.1]} 29... Qc6 {[%clk 0:00:50.9]} 30. Ra7
{[%clk 0:01:00.7]} 30... Nb4 {[%clk 0:00:48.1]} 31. Qc4 {[%clk 0:00:56.7]} 31...
Qb6 {[%clk 0:00:34.9]} 32. Rdd7 {[%clk 0:00:55.1]} 32... Nd5 {[%clk 0:00:21.6]}
33. Rab7 {[%clk 0:00:43.4]} 33... Qa5 {[%clk 0:00:21.4]} 34. Qe2 {[%clk
0:00:32.1]} 34... h6 {[%clk 0:00:17.1]} 35. Kg2 {[%clk 0:00:31.2]} 35... Nf6
{[%clk 0:00:17.2]} 36. Rdc7 {[%clk 0:00:30.7]} 36... Qd5+ {[%clk 0:00:16.6]} 37.
Qf3 {[%clk 0:00:29.5]} 37... Qa5 {[%clk 0:00:17.2]} 38. Qc3 {[%clk 0:00:29.4]}
38... Qd5+ {[%clk 0:00:16.8]} 39. Kh2 {[%clk 0:00:28.7]} 39... Ne4 {[%clk
0:00:15.6]} 40. Qf3 {[%clk 0:00:24.9]} 40... Qd4 {[%clk 0:00:08.8]} 41. Rxf7
{[%clk 0:00:22.7]} 41... Rxf7 {[%clk 0:00:09]} 42. Qxf7+ {[%clk 0:00:22.8]}
42... Kh7 {[%clk 0:00:09.3]} 43. Rd7 {[%clk 0:00:19.7]} 43... Qe5 {[%clk
0:00:08.2]} 44. Qf3 {[%clk 0:00:18]} 44... Ng5 {[%clk 0:00:07]} 45. Qd3+ {[%clk
0:00:18]} 45... Kg8 {[%clk 0:00:07.3]} 46. f4 {[%clk 0:00:15.3]} 46... Qe1
{[%clk 0:00:03.5]} 47. fxg5 {[%clk 0:00:14.2]} 47... Qf2+ {[%clk 0:00:03.9]} 48.
Kh1 {[%clk 0:00:14]} 48... hxg5 {[%clk 0:00:03.1]} 49. Rd8+ {[%clk 0:00:13.6]}
49... Kf7 {[%clk 0:00:03.5]} 50. Qd7+ {[%clk 0:00:11.7]} 50... Kg6 {[%clk
0:00:03.9]} 51. Qxe6+ {[%clk 0:00:11.7]} 51... Kh7 {[%clk 0:00:04.3]} 52. Qe4+
{[%clk 0:00:10.9]} 52... g6 {[%clk 0:00:04.1]} 53. Rd7+ {[%clk 0:00:10.5]} 53...
Kh6 {[%clk 0:00:03.9]} 54. Qg2 {[%clk 0:00:06.1]} 54... Qe1+ {[%clk 0:00:03.1]}
55. Kh2 {[%clk 0:00:06.6]} 55... Qe6 {[%clk 0:00:04]} 56. Rd3 {[%clk 0:00:06]}
56... a5 {[%clk 0:00:04.1]} 57. Qd2 {[%clk 0:00:06.6]} 57... Qf5 {[%clk
0:00:02.3]} 58. h4 {[%clk 0:00:06.7]} 1-0

[Event "Late-Titled-Tuesday-Blitz-March-19-2024"]
[Site "Chess.com"]
[Date "2024.03.19"]
[Round "11"]
[White "mightysmasher"]
[Black "Mikhail_Bryakin"]
[Result "0-1"]
[WhiteElo "2606"]
[BlackElo "2732"]
[TimeControl "180+1"]
[EndTime "16:06:09 PDT"]
[Termination "Mikhail_Bryakin won by checkmate"]

1. e4 {[%clk 0:03:00.9]} 1... d5 {[%clk 0:03:00.1]} 2. exd5 {[%clk 0:03:00.6]}
2... Nf6 {[%clk 0:03:00.1]} 3. Bb5+ {[%clk 0:02:57.5]} 3... Nbd7 {[%clk
0:02:59.2]} 4. c4 {[%clk 0:02:55.1]} 4... a6 {[%clk 0:02:59.3]} 5. Ba4 {[%clk
0:02:55]} 5... b5 {[%clk 0:03:00]} 6. cxb5 {[%clk 0:02:54.8]} 6... Nb6 {[%clk
0:03:00.7]} 7. Bb3 {[%clk 0:02:54.4]} 7... Nbxd5 {[%clk 0:02:57.1]} 8. Nf3
{[%clk 0:02:54.7]} 8... axb5 {[%clk 0:02:52.7]} 9. O-O {[%clk 0:02:54.5]} 9...
c5 {[%clk 0:02:52.5]} 10. Nc3 {[%clk 0:02:52.9]} 10... c4 {[%clk 0:02:48]} 11.
Bc2 {[%clk 0:02:52.7]} 11... Nxc3 {[%clk 0:02:44.9]} 12. dxc3 {[%clk 0:02:51.9]}
12... e6 {[%clk 0:02:42.3]} 13. Qxd8+ {[%clk 0:02:50.2]} 13... Kxd8 {[%clk
0:02:43.2]} 14. Rd1+ {[%clk 0:02:50.5]} 14... Ke8 {[%clk 0:02:37.7]} 15. Bg5
{[%clk 0:02:48]} 15... Be7 {[%clk 0:02:37.6]} 16. Nd4 {[%clk 0:02:47.3]} 16...
Bd7 {[%clk 0:02:37.3]} 17. Nf3 {[%clk 0:02:44.4]} 17... h6 {[%clk 0:02:34.1]}
18. Bh4 {[%clk 0:02:43.8]} 18... Nd5 {[%clk 0:02:32.4]} 19. Bxe7 {[%clk
0:02:42.6]} 19... Kxe7 {[%clk 0:02:33.3]} 20. Ne5 {[%clk 0:02:42.4]} 20... Rhd8
{[%clk 0:02:31.4]} 21. a3 {[%clk 0:02:42.1]} 21... Be8 {[%clk 0:02:30.8]} 22.
Be4 {[%clk 0:02:41]} 22... f6 {[%clk 0:02:29.1]} 23. Nf3 {[%clk 0:02:40.8]}
23... Ra6 {[%clk 0:02:26.7]} 24. Nd4 {[%clk 0:02:38.8]} 24... Rad6 {[%clk
0:02:27.1]} 25. Re1 {[%clk 0:02:37.2]} 25... Kf7 {[%clk 0:02:25]} 26. Rad1
{[%clk 0:02:34.4]} 26... e5 {[%clk 0:02:22.8]} 27. Nf5 {[%clk 0:02:29.2]} 27...
R6d7 {[%clk 0:02:23.1]} 28. Bf3 {[%clk 0:02:22.1]} 28... Kf8 {[%clk 0:02:03.9]}
29. g3 {[%clk 0:02:18]} 29... Nb6 {[%clk 0:01:52]} 30. Rxd7 {[%clk 0:02:10.7]}
30... Bxd7 {[%clk 0:01:52.3]} 31. Rd1 {[%clk 0:02:07.9]} 31... Rb8 {[%clk
0:01:39.8]} 32. Ne3 {[%clk 0:02:03.6]} 32... Ke7 {[%clk 0:01:40.3]} 33. Rd2
{[%clk 0:02:00.6]} 33... Be6 {[%clk 0:01:36.8]} 34. Kf1 {[%clk 0:01:56.9]} 34...
Na4 {[%clk 0:01:32.6]} 35. Ke1 {[%clk 0:01:49.6]} 35... Nc5 {[%clk 0:01:31.6]}
36. Be2 {[%clk 0:01:45.5]} 36... e4 {[%clk 0:01:29.4]} 37. Rd4 {[%clk
0:01:42.7]} 37... f5 {[%clk 0:01:29]} 38. Nd5+ {[%clk 0:01:40.8]} 38... Kf7
{[%clk 0:01:25.9]} 39. Nb4 {[%clk 0:01:36.7]} 39... Na4 {[%clk 0:01:18.1]} 40.
Rd2 {[%clk 0:01:32.3]} 40... Rc8 {[%clk 0:01:18.5]} 41. Bd1 {[%clk 0:01:30.1]}
41... Nc5 {[%clk 0:01:16.1]} 42. Rd4 {[%clk 0:01:28.5]} 42... Ke7 {[%clk
0:01:13]} 43. Be2 {[%clk 0:01:27.9]} 43... g5 {[%clk 0:01:13.3]} 44. h3 {[%clk
0:01:27.1]} 44... f4 {[%clk 0:01:12.1]} 45. h4 {[%clk 0:01:26.6]} 45... f3
{[%clk 0:01:08]} 46. Bf1 {[%clk 0:01:26.1]} 46... gxh4 {[%clk 0:01:08.8]} 47.
gxh4 {[%clk 0:01:26.1]} 47... Rg8 {[%clk 0:00:57.8]} 48. Nc6+ {[%clk 0:01:25]}
48... Kf6 {[%clk 0:00:57.6]} 49. Rd1 {[%clk 0:01:14.4]} 49... Rg1 {[%clk
0:00:51.3]} 50. Kd2 {[%clk 0:01:13]} 50... Na4 {[%clk 0:00:42]} 51. Kc1 {[%clk
0:01:05.3]} 51... Rh1 {[%clk 0:00:42.2]} 52. Nd4 {[%clk 0:01:03]} 52... Rh2
{[%clk 0:00:41.8]} 53. Rd2 {[%clk 0:00:59]} 53... Bd7 {[%clk 0:00:40.7]} 54.
Nxf3 {[%clk 0:00:51.4]} 54... exf3 {[%clk 0:00:40.1]} 55. Rxd7 {[%clk
0:00:51.2]} 55... Rxf2 {[%clk 0:00:40.1]} 56. Rd1 {[%clk 0:00:48.1]} 56... Nxb2
{[%clk 0:00:39.4]} 57. Re1 {[%clk 0:00:47.6]} 57... Nd3+ {[%clk 0:00:36.1]} 58.
Bxd3 {[%clk 0:00:47.5]} 58... cxd3 {[%clk 0:00:37]} 59. Re3 {[%clk 0:00:48]}
59... d2+ {[%clk 0:00:25.4]} 60. Kd1 {[%clk 0:00:47.6]} 60... Kf5 {[%clk
0:00:25.4]} 61. Re8 {[%clk 0:00:45.9]} 61... Kg4 {[%clk 0:00:23.7]} 62. Re4+
{[%clk 0:00:44.4]} 62... Kg3 {[%clk 0:00:23.6]} 63. h5 {[%clk 0:00:43.9]} 63...
Rh2 {[%clk 0:00:22.4]} 64. Re6 {[%clk 0:00:41.5]} 64... Rh1+ {[%clk 0:00:21.7]}
65. Kxd2 {[%clk 0:00:40.5]} 65... f2 {[%clk 0:00:22.4]} 66. Rg6+ {[%clk
0:00:40.7]} 66... Kh4 {[%clk 0:00:22.4]} 67. Rf6 {[%clk 0:00:41.1]} 67... f1=Q
{[%clk 0:00:22.7]} 68. Rxf1 {[%clk 0:00:41.6]} 68... Rxf1 {[%clk 0:00:23.4]} 69.
c4 {[%clk 0:00:42.2]} 69... bxc4 {[%clk 0:00:23.2]} 70. Kc3 {[%clk 0:00:43.1]}
70... Kxh5 {[%clk 0:00:22.6]} 71. Kxc4 {[%clk 0:00:43.3]} 71... Ra1 {[%clk
0:00:23.2]} 72. a4 {[%clk 0:00:44.2]} 72... Rxa4+ {[%clk 0:00:22.7]} 73. Kd5
{[%clk 0:00:45.1]} 73... Rg4 {[%clk 0:00:23.3]} 74. Ke5 {[%clk 0:00:45.9]} 74...
Kg5 {[%clk 0:00:23.9]} 75. Ke6 {[%clk 0:00:46.1]} 75... h5 {[%clk 0:00:24.8]}
76. Ke5 {[%clk 0:00:47]} 76... h4 {[%clk 0:00:25.6]} 77. Kd5 {[%clk 0:00:47.4]}
77... h3 {[%clk 0:00:26.5]} 78. Kd6 {[%clk 0:00:48.3]} 78... h2 {[%clk
0:00:27.3]} 79. Ke5 {[%clk 0:00:49.2]} 79... h1=Q {[%clk 0:00:27.4]} 80. Ke6
{[%clk 0:00:50.1]} 80... Qe1+ {[%clk 0:00:27.6]} 81. Kd5 {[%clk 0:00:48.7]}
81... Rg2 {[%clk 0:00:26.8]} 82. Kd4 {[%clk 0:00:48.3]} 82... Rd2+ {[%clk
0:00:27.2]} 83. Kc3 {[%clk 0:00:49.2]} 83... Qc1+ {[%clk 0:00:27.3]} 84. Kb3
{[%clk 0:00:50.1]} 84... Qc7 {[%clk 0:00:26.7]} 85. Ka4 {[%clk 0:00:51]} 85...
Rd8 {[%clk 0:00:25.3]} 86. Kb4 {[%clk 0:00:50.3]} 86... Rb8+ {[%clk 0:00:25.7]}
87. Ka3 {[%clk 0:00:50]} 87... Qa7# {[%clk 0:00:03.5]} 0-1